Workbook

Sheet Revenus
A1: REVENUS | B1: Addresse | C1: Grandeur | D1: pi.c | E1: Loyer | F1: $ / pi.c | G1: Loyer / Annee | H1: $ / pi.c / annee | I1: Notes
A2: Logements | B2: #1-10703 De Poncheville | C2: 5,5 | D2: 820 | E2: 615 | F2: =E2/D2 -> 0.75 | G2: =E2*12 -> 7380 | H2: =G2/D2 -> 9 | I2: entré laveuse et sécheuse mais pas d’entré de lave-vaisselle
A3: Juin 2023 | B3: #2-10703 De Poncheville | C3: 3,5 | D3: 411 | E3: 615 | F3: 1.496350365 | G3: 7380 | H3: 17.95620438 | I3: pas entré laveuse sécheuse et lave- vaisaille
B4: #3-10703 De Poncheville | C4: 3,5 | D4: 393 | E4: 615 | F4: 1.564885496 | G4: 7380 | H4: 18.77862595 | I4: pas entré laveuse sécheuse et lave-vaisselle
B6: #1-10704 Vianney | C6: 4,5 | D6: 939 | E6: 815 | F6: =E6/D6 -> 0.8679446219 | G6: =E6*12 -> 9780 | H6: =G6/D6 -> 10.41533546 | I6: pas entré laveuse sécheuse et lave-vaisselle
B7: #3-10704 Vianney | C7: 4,5 | D7: 732 | E7: 600 | F7: 0.8196721311 | G7: 7200 | H7: 9.836065574 | I7: il a une entré de laveuse mais pas de sécheuse et de lave-vaiselle
B9: Totales | C9: =COUNTA(C2:C7) -> 5 | D9: =sum(D2:D7) -> 3295 | E9: =SUM(E2:E7) -> 3260 | F9: =E9/D9 -> 0.9893778452 | G9: =E9*12 -> 39120 | H9: 11.87253414
A12: 2024-03-01 | B12: #1-10703 De Poncheville | C12: 5,5 | D12: 820 | E12: 640 | F12: =E12/D12 -> 0.7804878049 | G12: =E12*12 -> 7680 | H12: =G12/D12 -> 9.365853659
B13: #2-10703 De Poncheville | C13: 3,5 | D13: 411 | E13: 640 | F13: 1.557177616 | G13: 7680 | H13: 18.68613139
B14: #3-10703 De Poncheville | C14: 3,5 | D14: 393 | E14: 640 | F14: 1.628498728 | G14: 7680 | H14: 19.54198473
B16: #1-10704 Vianney | C16: 4,5 | D16: 939 | E16: 848 | F16: =E16/D16 -> 0.9030883919 | G16: =E16*12 -> 10176 | H16: =G16/D16 -> 10.8370607
B17: #3-10704 Vianney | C17: 4,5 | D17: 732 | E17: 624 | F17: 0.8524590164 | G17: 7488 | H17: 10.2295082
B19: Totales | C19: =COUNTA(C12:C17) -> 5 | D19: =sum(D12:D17) -> 3295 | E19: =SUM(E12:E17) -> 3392 | F19: =E19/D19 -> 1.029438543 | G19: =E19*12 -> 40704 | H19: 12.35326252 | I19: =IF(G19-G9>=0, "+" & TEXT(ROUND(G19-G9,2), "0.00"), TEXT(ROUND(G19-G9,2), "0.00")) -> +1584.00
A22: 2025-07-01 | B22: #1-10703 De Poncheville | C22: 5,5 | D22: 820 | E22: 677.76 | F22: =E22/D22 -> 0.8265365854 | G22: =E22*12 -> 8133.12 | H22: =G22/D22 -> 9.918439024 | I22: NB: a compter du 1er juillet les loyers seront tous augmentés de 5,9%
B23: #2-10703 De Poncheville | C23: 3,5 | D23: 411 | E23: 677.76 | F23: 1.649051095 | G23: 8133.12 | H23: 19.78861314 | I23: NB: a compter du 1er juillet les loyers seront tous augmentés de 5,9%
B24: #3-10703 De Poncheville | C24: 3,5 | D24: 393 | E24: 677.76 | F24: 1.724580153 | G24: 8133.12 | H24: 20.69496183 | I24: NB: a compter du 1er juillet les loyers seront tous augmentés de 5,9%
B26: #1-10704 Vianney | C26: 4,5 | D26: 939 | E26: 898.032 | F26: =E27/D26 -> 0.7037444089 | G26: =E27*12 -> 7929.792 | H26: =G26/D26 -> 8.444932907 | I26: NB: a compter du 1er juillet les loyers seront tous augmentés de 5,9%
B27: #3-10704 Vianney | C27: 4,5 | D27: 732 | E27: 660.816 | F27: =E27/D27 -> 0.9027540984 | G27: =E27*12 -> 7929.792 | H27: 10.83304918 | I27: NB: a compter du 1er juillet les loyers seront tous augmentés de 5,9%
B29: Totales | C29: =COUNTA(C22:C27) -> 5 | D29: =sum(D22:D27) -> 3295 | E29: =SUM(E22:E27) -> 3592.128 | F29: =E29/D29 -> 1.090175417 | G29: =E29*12 -> 43105.536 | H29: 13.08210501 | I29: =IF(G29-G19>=0, "+" & TEXT(ROUND(G29-G19,2), "0.00"), TEXT(ROUND(G29-G19,2), "0.00")) -> +2401.54
A32: Commercial | B32: 2645 Henri Bourassa E. | C32: 2 etages | D32: 9406 | E32: Prop. occupant | F32: =B34/D32 -> 249.8405273 | G32: $- | H32: =F32*12 -> 2998.086328
A34: Prix Demandes | B34: 2350000

Sheet Depense 24
B2: DEPENSES | C2: Mois | D2: Annee
B3: 2024-2025
B4: Hydro | C4: =D4/12 -> 3904 | D4: 46848 | E4: Pour hydro QC, il y a 3 compteurs
B5: Assurance | C5: 0 | D5: $-
B6: Gestion | C6: $- | D6: $-
B7: Concierge | C7: =D7/12 -> 50 | D7: 600
B8: Mauvaise Creance | C8: $- | D8: $-
B9: Tax Scolaire | C9: =D9/12 -> 135.2566667 | D9: 1623.08
B10: Tax Municpale | C10: 3008.826667 | D10: 36105.92
B11: Deniegement | C11: 220.8333333 | D11: 2650
B12: Entretien | C12: 241.5 | D12: 2898
B13: Paysagement | C13: 328.1575 | D13: 3937.89
B14: Totale | C14: =sum(C4:C13) -> 7888.574167 | D14: 94662.89
